fUSD/lending_fUSD_20240129
["ID","MTS","AMOUNT","RATE_DAILY","PERIOD"]
[312963147,1706548239793,-13111.73678437,0.00032,4]
[312963148,1706548239802,-874.62303846,0.00032,2]
[312963149,1706548239812,-155.0,0.00032,2]
[312963150,1706548239822,-33255.93289363,0.00032,5]
[312963151,1706548239831,-908.21,0.00032011,2]
[312963152,1706548239841,-175.0632212,0.00032277,2]
[312963153,1706548239851,-153.98862464,0.00032277,2]
[312963154,1706548239861,-908.21,0.000323,2]
[312963155,1706548239872,-2342.45,0.000323,2]
[312963156,1706548239881,-150.0,0.00032407,2]
[312963157,1706548239890,-151.0,0.00032497,120]
[312963158,1706548239900,-164.20551989,0.000325,2]
[312963159,1706548239910,-600.0,0.0003251,2]
[312963160,1706548239920,-500.0,0.00032512,2]
[312963161,1706548239930,-1888.03,0.00032525,2]
[312963162,1706548239939,-154.85,0.00032572,2]
[312963163,1706548239949,-908.21,0.00032588,2]
[312963164,1706548239959,-1572.30314,0.0003259,2]
[312963165,1706548239969,-400.0,0.00032591,2]
[312963166,1706548239979,-200.0,0.00032768,2]
[312963167,1706548239989,-1572.30315,0.0003277,2]
[312963168,1706548239999,-2276.90692317,0.0003278,5]
[312963169,1706548240008,-9703.82763004,0.000328,2]
[312963170,1706548240017,-908.21,0.00032877,2]
[312963171,1706548240028,-500.0,0.00032877,2]
[312963172,1706548240037,-500.0,0.00032877,2]
[312963173,1706548240046,-167.04,0.00032877,2]
[312963174,1706548240057,-443.36783375,0.000329,21]
[312963175,1706548240068,-2008.33992537,0.00033,14]
[312963177,1706548240078,-204.0,0.00033,2]
[312963179,1706548240086,-81.49206941,0.00033,3]
[312963181,1706548240484,-668.50793059,0.00033,3]
[312963182,1706548240494,-62.92674449,0.00033074,2]
[312963183,1706548240513,-712.00325551,0.00033074,2]
[312963184,1706548240524,-1572.30314,0.0003308,2]
[312963185,1706548240534,-151.0,0.0003316,30]
[312963186,1706548240543,-154.85,0.00033181,2]
[312963187,1706548240553,-2218.84016441,0.00033264,5]
[312963188,1706548240562,-500.0,0.00033281,2]
[312963189,1706548240572,-1000.0,0.00033333,2]
[312963190,1706548240581,-1572.30315,0.0003339,2]
[312963191,1706548240590,-232.88475836,0.000334,4]
[312963192,1706548240599,-200.0,0.00033554,5]
[312963193,1706548240608,-860.87789922,0.00033563,6]
[312963194,1706548240618,-1000.0,0.000336,2]
[312963195,1706548240627,-153.12932561,0.0003366,2]
[312963196,1706548240636,-1572.30315,0.0003371,2]
[312963197,1706548240646,-154.85,0.0003379,2]
[312963198,1706548240655,-200.0,0.00033794,2]
[312963199,1706548240664,-151.0,0.00033836,7]
[312963200,1706548240673,-11341.82,0.00033844,2]
[312963201,1706548240682,-155.70150421,0.00034,4]
[312963202,1706548240691,-1572.30314,0.0003402,2]
[312963203,1706548240701,-500.0,0.0003405,2]
[312963204,1706548240710,-205.0,0.000341,14]
[312963205,1706548240719,-1888.03,0.00034169,2]
[312963206,1706548240728,-4329.57432034,0.0003434,2]
[312963207,1706548240737,-154.85,0.00034399,2]
[312963208,1706548240746,-434.77735886,0.00034486,2]
[312963209,1706548240755,-151.0,0.00034527,4]
[312963210,1706548240764,-150.0,0.00034548,10]
[312963211,1706548240774,-152.0,0.00034703,3]
[312963212,1706548240784,-500.0,0.00034819,2]
[312963213,1706548240794,-200.0,0.00034819,5]
[312963214,1706548240805,-200.0,0.00034819,2]
[312963215,1706548240814,-150.0,0.00034834,2]
[312963216,1706548240824,-4269.10331057,0.000349,4]
[312963217,1706548240837,-465.55918947,0.000349,4]
[312963218,1706548240871,-4249.31476544,0.000349,4]
[312963219,1706548240881,-518.54588086,0.000349,2]
[312963220,1706548240892,-518.54588077,0.000349,2]
[312963221,1706548240901,-518.54588077,0.000349,2]
[312963222,1706548240910,-518.54588077,0.000349,2]
[312963223,1706548240921,-518.54588077,0.000349,2]
[312963224,1706548240933,-518.54588077,0.000349,2]
[312963225,1706548240944,-518.54588077,0.000349,2]
[312963226,1706548240953,-518.54588077,0.000349,2]
[312963227,1706548240963,-150.0,0.00034956,2]
[312963228,1706548240972,-150.0,0.00034986,2]
[312963229,1706548240982,-2218.84016441,0.00034991,7]
[312963230,1706548240991,-155.0,0.00035,2]
[312963231,1706548241000,-7257.2972383,0.00035,4]
[312963232,1706548241009,-15786.74133144,0.00035,7]
[312963233,1706548241019,-449.39237637,0.00035,4]
[312963234,1706548241028,-155.0,0.00035,2]
[312963235,1706548241038,-3000.0,0.00035,2]
[312963236,1706548241047,-5000.0,0.00035,7]
[312963237,1706548241056,-1263.77896347,0.00035,4]
[312963238,1706548241066,-13314.21926744,0.00035,7]
[312963239,1706548241081,-1807.45565431,0.00035,7]
[312963240,1706548241091,-506.928357,0.00035,11]
[312963241,1706548241100,-170.37257116,0.00035,2]
[312963242,1706548241111,-292.34086048,0.00035,2]
[312963243,1706548241125,-450.0,0.00035,3]
[312963244,1706548241135,-800.0,0.00035,3]
[312963246,1706548241145,-14225.74825178,0.00035,2]
[312963247,1706548241156,-154.85,0.00035008,2]
[312963248,1706548241166,-152.09529989,0.00035063,2]
[312963249,1706548241176,-150.0,0.00035071,2]
[312963250,1706548241185,-150.0,0.00035107,2]
[312963251,1706548241195,-150.0,0.00035161,2]
[312963253,1706548241204,-150.0,0.00035188,2]
[312963254,1706548241214,-150.0,0.00035189,2]
[312963256,1706548241223,-150.0,0.00035206,2]
[312963258,1706548241233,-336.24697309,0.00035222,2]
[312963259,1706548241244,-151.0,0.00035232,2]
[312963260,1706548241253,-150.0,0.00035252,2]
[312963261,1706548241262,-150.0,0.00035268,2]
[312963262,1706548241273,-500.0,0.0003529,2]
[312963263,1706548241283,-150.0,0.00035314,2]
[312963264,1706548241292,-150.0,0.00035317,2]
[312963265,1706548241352,-150.0,0.00035321,2]
[312963266,1706548241362,-774.93,0.00035338,2]
[312963267,1706548241372,-161.45820445,0.00035339,2]
[312963268,1706548241382,-153.15055908,0.00035339,2]
[312963269,1706548241391,-150.0,0.00035344,2]
[312963270,1706548241400,-150.0,0.00035371,2]
[312963271,1706548241409,-150.0,0.00035379,2]
[312963272,1706548241419,-150.0,0.00035388,2]
[312963273,1706548241428,-200.0,0.00035447,2]
[312963274,1706548241437,-154.52,0.000355,3]
[312963275,1706548241446,-154.52,0.000355,3]
[312963276,1706548241456,-154.52,0.000355,3]
[312963277,1706548241465,-154.52,0.000355,3]
[312963278,1706548241473,-150.0,0.00035503,2]
[312963279,1706548241482,-323.01906998,0.00035514,4]
[312963280,1706548241491,-518.54588077,0.0003553,2]
[312963281,1706548241501,-434.0,0.0003554,2]
[312963282,1706548241510,-400.0,0.00035554,2]
[312963283,1706548241519,-150.0,0.00035564,2]
[312963284,1706548241529,-1789.92,0.00035575,5]
[312963285,1706548241538,-150.0,0.00035592,2]
[312963286,1706548241547,-150.0,0.00035616,2]
[312963287,1706548241557,-300.0,0.00035616,7]
[312963288,1706548241567,-200.84059195,0.00035616,12]
[312963289,1706548241576,-154.85,0.00035616,2]
[312963290,1706548241585,-814.05,0.00035616,2]
[312963291,1706548241596,-709.8,0.00035616,2]
[312963292,1706548241606,-150.0,0.00035616,2]
[312963293,1706548241615,-261.41,0.00035616,2]
[312963294,1706548241626,-249.2,0.00035616,2]
[312963295,1706548241635,-150.0,0.00035616,2]
[312963296,1706548241644,-150.0,0.00035616,2]
[312963297,1706548241653,-150.0,0.00035616,2]
[312963298,1706548241664,-150.0,0.00035616,2]
[312963299,1706548241674,-150.0,0.00035616,2]
[312963300,1706548241683,-150.0,0.00035616,2]
[312963301,1706548241692,-150.0,0.00035616,2]
[312963302,1706548241701,-150.0,0.00035616,2]
[312963303,1706548241711,-150.0,0.00035616,2]
[312963304,1706548241723,-150.0,0.00035616,2]
[312963305,1706548241734,-150.0,0.00035616,2]
[312963306,1706548241744,-150.0,0.00035616,2]
[312963307,1706548241754,-150.0,0.00035616,2]
[312963308,1706548241764,-150.0,0.00035616,2]
[312963309,1706548241774,-150.0,0.00035616,2]
[312963310,1706548241782,-150.0,0.00035616,2]
[312963311,1706548241791,-150.0,0.00035628,2]
[312963312,1706548241801,-150.0,0.00035665,2]
[312963313,1706548241811,-150.0,0.00035678,2]
[312963314,1706548241821,-150.0,0.0003569,2]
[312963315,1706548241831,-150.0,0.00035691,2]
[312963316,1706548241840,-17947.55255658,0.000357,2]
[312963317,1706548241849,-150.0,0.00035701,2]
[312963318,1706548241858,-150.0,0.00035702,2]
[312963319,1706548241868,-1500.0,0.00035711,2]
[312963320,1706548241878,-150.0,0.0003572,2]
[312963321,1706548241888,-1500.0,0.00035721,2]
[312963322,1706548241898,-150.0,0.00035724,2]
[312963323,1706548241909,-150.0,0.00035753,2]
[312963324,1706548241919,-1500.0,0.00035757,2]
[312963325,1706548241929,-500.0,0.00035761,2]
[312963326,1706548241938,-150.0,0.00035771,2]
[312963327,1706548241947,-150.0,0.00035774,2]
[312963328,1706548241956,-150.0,0.00035785,2]
[312963329,1706548241965,-300.0,0.00035793,2]
[312963330,1706548241975,-150.0,0.00035811,2]
[312963331,1706548241985,-150.0,0.00035819,2]
[312963332,1706548241996,-1500.0,0.0003582,2]
[312963333,1706548242006,-150.0,0.0003583,2]
[312963334,1706548242015,-150.0,0.00035838,2]
[312963335,1706548242026,-150.0,0.00035849,2]
[312963336,1706548242036,-150.0,0.00035853,2]
[312963337,1706548242046,-150.0,0.00035856,2]
[312963338,1706548242057,-150.0,0.00035863,2]
[312963339,1706548242071,-150.0,0.0003587,2]
[312963340,1706548242080,-150.0,0.00035882,2]
[312963341,1706548242089,-1500.0,0.00035889,2]
[312963342,1706548242099,-150.0,0.00035894,2]
[312963343,1706548242108,-150.0,0.000359,2]
[312963344,1706548242118,-443.36783375,0.000359,25]
[312963345,1706548242127,-1500.0,0.00035903,2]
[312963346,1706548242137,-150.62584773,0.0003591,5]
[312963347,1706548242146,-150.0,0.00035915,2]
[312963348,1706548242155,-150.0,0.00035916,2]
[312963349,1706548242164,-150.0,0.00035918,2]
[312963350,1706548242173,-234.63597224,0.00035925,2]
[312963351,1706548242182,-150.0,0.00035929,2]
[312963352,1706548242191,-150.0,0.00035934,2]
[312963353,1706548242199,-150.0,0.00035949,2]
[312963354,1706548242209,-150.0,0.00035952,2]
[312963355,1706548242218,-1500.0,0.00035963,2]
[312963356,1706548242227,-150.0,0.00035965,2]
[312963357,1706548242236,-150.0,0.00035977,2]
[312963358,1706548242245,-150.0,0.00035978,2]
[312963359,1706548242253,-150.0,0.00035982,2]
[312963360,1706548242262,-150.0,0.00035993,2]
[312963361,1706548242272,-298.81747628,0.00036,4]
[312963362,1706548242281,-150.0,0.00036023,2]
[312963363,1706548242291,-300.0,0.00036024,2]
[312963364,1706548242300,-150.0,0.00036027,2]
[312963365,1706548242309,-1500.0,0.00036031,2]
[312963366,1706548242318,-150.0,0.00036032,2]
[312963367,1706548242326,-150.0,0.00036034,2]
[312963368,1706548242336,-300.0,0.00036038,2]
[312963369,1706548242345,-150.0,0.00036042,2]
[312963371,1706548242355,-150.0,0.00036053,2]
[312963373,1706548242364,-150.0,0.00036053,2]
[312963376,1706548242373,-150.0,0.00036057,2]
[312963379,1706548242383,-150.0,0.00036057,2]
[312963382,1706548242392,-150.0,0.0003606,2]
[312963385,1706548242401,-150.0,0.00036068,2]
[312963388,1706548242411,-200.0,0.00036075,2]
[312963391,1706548242420,-150.0,0.0003608,2]
[312963394,1706548242430,-842.5370952,0.00036089,2]
[312963398,1706548242441,-2154.56,0.000361,3]
[312963400,1706548242450,-2154.56,0.000361,3]
[312963403,1706548242460,-2154.56,0.000361,3]
[312963406,1706548242469,-2154.56,0.000361,3]
[312963409,1706548242478,-2154.56,0.000361,3]
[312963412,1706548242487,-2154.56,0.000361,3]
[312963415,1706548242496,-2154.56,0.000361,3]
[312963418,1706548242506,-2154.56,0.000361,3]
[312963422,1706548242515,-2154.56,0.000361,3]
[312963424,1706548242526,-2154.56,0.000361,3]
[312963427,1706548242535,-2154.56,0.000361,3]
[312963431,1706548242544,-2154.56,0.000361,3]
[312963435,1706548242553,-2154.56,0.000361,3]
[312963436,1706548242562,-2154.56,0.000361,3]
[312963439,1706548242571,-2154.56,0.000361,3]
[312963442,1706548242580,-2154.56,0.000361,3]
[312963443,1706548242590,-2154.56,0.000361,3]
[312963445,1706548242599,-2154.56,0.000361,3]
[312963446,1706548242608,-2154.56,0.000361,3]
[312963448,1706548242617,-2154.56,0.000361,3]
[312963449,1706548242626,-150.0,0.00036105,2]
[312963450,1706548242635,-150.0,0.00036111,2]
[312963451,1706548242644,-150.0,0.00036116,2]
[312963452,1706548242653,-150.0,0.00036117,2]
[312963453,1706548242663,-150.0,0.00036118,2]
[312963454,1706548242672,-150.0,0.00036121,2]
[312963455,1706548242681,-150.0,0.00036126,2]
[312963456,1706548242690,-150.0,0.00036126,2]
[312963457,1706548242699,-150.0,0.00036138,2]
[312963458,1706548242708,-150.0,0.0003614,2]
[312963459,1706548242717,-150.0,0.00036157,2]
[312963460,1706548242726,-150.0,0.00036167,2]
[312963461,1706548242735,-300.0,0.00036168,2]
[312963462,1706548242744,-150.0,0.00036175,2]
[312963463,1706548242754,-152.0,0.00036182,4]
[312963464,1706548242763,-150.0,0.00036184,2]
[312963465,1706548242774,-150.0,0.00036195,2]
[312963466,1706548242783,-150.0,0.00036197,2]
[312963467,1706548242792,-150.0,0.00036202,2]
[312963468,1706548242801,-150.0,0.00036205,2]
[312963469,1706548242811,-150.0,0.00036206,2]
[312963470,1706548242820,-150.0,0.00036207,2]
[312963471,1706548242829,-163.37189015,0.00036208,2]
[312963472,1706548242840,-150.0,0.00036223,2]
[312963473,1706548242849,-154.85,0.00036225,2]
[312963474,1706548242859,-150.0,0.0003623,2]
[312963475,1706548242868,-500.0,0.00036232,2]
[312963476,1706548242877,-150.0,0.00036235,2]
[312963477,1706548242886,-150.0,0.00036247,2]
[312963478,1706548242896,-150.0,0.00036247,2]
[312963479,1706548242905,-150.0,0.00036247,2]
[312963480,1706548242914,-150.0,0.00036249,2]
[312963481,1706548242924,-150.0,0.00036253,2]
[312963482,1706548242934,-150.0,0.00036254,2]
[312963483,1706548242943,-150.0,0.00036261,2]
[312963484,1706548242952,-150.0,0.00036264,2]
[312963485,1706548242963,-150.0,0.00036269,2]
[312963486,1706548242975,-1500.0,0.0003627,2]
[312963488,1706548242985,-150.0,0.00036271,2]
[312963489,1706548242995,-150.0,0.00036288,2]
[312963490,1706548243005,-150.0,0.00036298,2]
[312963491,1706548243014,-150.01,0.000363,2]
[312963492,1706548243026,-3304.27043834,0.000363,2]
[312963493,1706548243040,-851.0,0.000363,25]
[312963494,1706548243050,-200.0,0.000363,2]
[312963495,1706548243060,-1546.54399,0.000363,21]
[312963496,1706548243070,-150.0,0.000363,10]
[312963497,1706548243083,-17288.1297019,0.00036301,4]
[312963498,1706548243092,-700.84224779,0.00036301,30]
[312963499,1706548243102,-10724.3366194,0.00036313,2]
[312963500,1706548243112,-9927.8410115,0.00036313,2]
[312963501,1706548243122,-2203.8304674,0.00036313,2]
[312963503,1706548243132,-29941.05135154,0.00036313,2]
[312963504,1706548243146,-40865.24291392,0.00036313,2]
[312963505,1706548243158,-307.60963438,0.00036313,2]
[312963506,1706548243177,-7687.78630889,0.00036313,2]
[312963507,1706548243190,-5329.03289985,0.00036313,2]
[312963508,1706548243815,-43742.00567852,0.00036313,2]
[312963509,1706548243832,-16227.53509088,0.00036313,2]
[312963510,1706548243847,-38177.69445532,0.00036313,2]
[312963511,1706548243857,-860.87789922,0.00036342,7]
[312963512,1706548243867,-800.0,0.00036357,5]
[312963513,1706548243877,-1000.0,0.000364,15]
[312963514,1706548243888,-154.34,0.00036438,2]
[312963515,1706548243897,-154.34,0.00036438,90]
[312963516,1706548243907,-150.0,0.00036438,2]
[312963517,1706548243917,-150.0,0.00036438,2]
[312963518,1706548243928,-330.37,0.00036438,2]
[312963519,1706548243938,-301.11,0.00036438,2]
[312963520,1706548243949,-295.21,0.00036438,2]
[312963521,1706548243959,-150.0,0.00036438,2]
[312963522,1706548243968,-295.21,0.00036438,2]
[312963523,1706548243978,-150.0,0.00036438,2]
[312963524,1706548243987,-295.21,0.00036438,2]
[312963525,1706548243997,-150.0,0.00036438,2]
[312963526,1706548244007,-216.8,0.00036438,2]
[312963527,1706548244018,-279.71703256,0.00036445,4]
[312963528,1706548244028,-447.12842877,0.000365,60]
[312963529,1706548244038,-452.831503,0.00036631,5]
[312963530,1706548244132,-1350.938497,0.00036631,5]
[312963531,1706548244142,-1000.0,0.00036667,2]
[312963532,1706548244153,-500.0,0.00036703,2]
[312963533,1706548244163,-200.0,0.00036703,5]
[312963534,1706548244172,-800.0,0.00036703,5]
[312963535,1706548244182,-200.0,0.00036703,2]
[312963536,1706548244191,-2218.84016441,0.00036718,9]
[312963537,1706548244201,-312.81536894,0.0003678,4]
[312963538,1706548244211,-851.0,0.000368,26]
[312963539,1706548244221,-1846.93469674,0.0003681,2]
[312963540,1706548244230,-268.17443877,0.00036813,4]
[312963541,1706548244240,-3679.30863627,0.00036813,4]
[312963542,1706548244250,-691.2394096,0.00036813,4]
[312963543,1706548244259,-340.08491371,0.00036813,4]
[312963544,1706548244269,-308.13543031,0.00036813,4]
[312963545,1706548244280,-868.30882633,0.00036813,2]
[312963546,1706548244289,-19118.76563825,0.00036814,4]
[312963547,1706548244300,-500.0,0.00036815,2]
[312963548,1706548244309,-501.6691,0.00036815,2]
[312963549,1706548244319,-1000.0,0.00036815,2]
[312963550,1706548244328,-271.4136372,0.00036815,2]
[312963551,1706548244341,-728.5863628,0.00036815,2]
[312963552,1706548244351,-1000.0,0.00036815,2]
[312963553,1706548244361,-1000.0,0.00036815,2]
[312963554,1706548244370,-1000.0,0.00036815,2]
[312963555,1706548244380,-1000.0,0.00036815,2]
[312963556,1706548244389,-1000.0,0.00036815,2]
[312963557,1706548244399,-1000.0,0.00036815,2]
[312963558,1706548244409,-1000.0,0.00036815,2]
[312963559,1706548244424,-1000.0,0.00036815,2]
[312963560,1706548244433,-1023.4765,0.00036815,2]
[312963561,1706548244443,-500.0,0.00036815,2]
[312963562,1706548244453,-506.424,0.00036815,2]
[312963563,1706548244463,-59.7631372,0.00036834,2]
[312963564,1706548244476,-95.0868628,0.00036834,2]
[312963565,1706548244486,-1836.66,0.0003687,5]
[312963566,1706548244496,-11699.87,0.00036877,2]
[312963567,1706548244505,-541.00443679,0.00036899,2]
[312963568,1706548244515,-1205.81665961,0.00036994,4]
[312963569,1706548244526,-197.11131551,0.00036995,4]
[312963570,1706548244535,-387.70066917,0.00036995,4]
[312963571,1706548244545,-155.0,0.00036997,4]
[312963572,1706548244554,-203.40048379,0.00036997,4]
[312963573,1706548244564,-345.60115126,0.00036998,7]
[312963574,1706548244573,-8284.21192906,0.00036998,2]
[312963575,1706548244584,-48907.32536183,0.00036998,2]
[312963576,1706548244594,-671.94530451,0.00036999,4]
[312963577,1706548244604,-150.0,0.00036999,2]
[312963578,1706548244613,-167.6497327,0.00036999,2]
[312963579,1706548244622,-2246.6865346,0.00037,7]
[312963580,1706548244655,-532.24760055,0.00037,7]
[312963581,1706548244783,-29533.70374409,0.00037,7]
[312963582,1706548245194,-729.66492669,0.00037,7]
[312963583,1706548245206,-285.32172466,0.00037,7]
[312963584,1706548245219,-297.9399987,0.00037,7]
[312963585,1706548245231,-373.36689,0.00037,7]
[312963586,1706548245244,-283.15075533,0.00037,7]
[312963587,1706548245256,-15717.91782538,0.00037,7]
[312963588,1706548245265,-45436.15843543,0.00037,2]
[312963589,1706548245277,-312.99611056,0.00037,4]
[312963590,1706548245286,-1003.0,0.00037,5]
[312963591,1706548245295,-1008.492186,0.00037,7]
[312963592,1706548245305,-206.0,0.00037,2]
[312963593,1706548245314,-206.0,0.00037,2]
[312963594,1706548245325,-500.0,0.00037,14]
[312963595,1706548245336,-1088.90480078,0.00037,14]
[312963596,1706548245348,-670.3483533,0.00037,7]
[312963597,1706548245359,-1278.88025573,0.00037,5]
[312963599,1706548245371,-515.78092806,0.00037,4]
[312963601,1706548245380,-1000.0,0.00037,7]
[312963602,1706548245390,-17500.419131,0.00037,2]
[312963603,1706548245399,-850.0,0.00037,3]
[312963604,1706548245409,-518.54588077,0.00037109,2]
[312963605,1706548245419,-151.0129,0.00037148,14]
[312963606,1706548245429,-851.0,0.000373,26]
[312963608,1706548245439,-151.0129,0.00037348,14]
[312963616,1706548245611,-154.85,0.00037443,2]
[312963617,1706548245631,-151.0129,0.00037448,13]
[312963618,1706548245641,-160.11236734,0.000375,2]
[312963619,1706548245651,-1000.0,0.000375,7]
[312963620,1706548245662,-4039.69920093,0.0003759,2]
[312963621,1706548245673,-774.93,0.00037602,2]
[312963622,1706548245682,-152.0,0.00037661,5]
[312963623,1706548245691,-3182.01192938,0.00037699,2]
[312963624,1706548245701,-1000.0,0.000377,15]
[312963625,1706548245711,-1188.87557534,0.000377,3]
[312963626,1706548245725,-1153.57442466,0.000377,3]
[312963627,1706548245735,-171.51031647,0.00037701,5]
[312963628,1706548245745,-151.0129,0.00037748,14]
[312963629,1706548245755,-851.0,0.000378,27]
[312963630,1706548245766,-205.0,0.000378,21]
[312963631,1706548245778,-200.0,0.0003787,7]
[312963632,1706548245789,-200.0,0.0003787,7]
[312963633,1706548245799,-1436.29,0.000379,7]
[312963634,1706548245808,-300.0,0.000379,2]
[312963635,1706548245818,-284.65581272,0.000379,2]
[312963636,1706548245830,-215.34418728,0.000379,2]
[312963637,1706548245840,-10467.57149307,0.000379,3]
[312963638,1706548245864,-792.50513559,0.000379,3]
[312963639,1706548245875,-457.92000001,0.000379,3]
[312963640,1706548245886,-5135.54346025,0.000379,3]
[312963641,1706548245898,-5043.59014784,0.000379,3]
[312963647,1706548247362,-480.68451684,0.00030879,4]
[312963648,1706548247372,-495.4850043,0.00030879,4]
[312963649,1706548247383,-190.55267886,0.0003088,2]
[312963650,1706548247421,-837.50014402,0.00030879,2]
[312963651,1706548247431,-309.44732114,0.0003088,2]
[312963652,1706548247440,-21.06315732,0.00035338,4]
[312963653,1706548247452,-197.09362325,0.00035338,4]
[312963654,1706548247462,-129037.70673352,0.000379,3]
[312963655,1706548247473,-13241.90885032,0.000379,3]
[312963656,1706548247485,-2293.05122453,0.000379,3]
[312963657,1706548247496,-813.90032569,0.000379,3]
[312963658,1706548247512,-13908.58878211,0.000379,3]
[312963659,1706548247524,-6568.88171292,0.000379,3]
[312963660,1706548247535,-4170.34999999,0.000379,3]
[312963661,1706548247655,-287.0,0.000379,5]
[312963662,1706548247665,-1829.741276,0.000379,3]
[312963664,1706548249087,-0.78413542,0.000379,3]
[312963665,1706548249101,-2142.52160575,0.000379,3]
[312963673,1706548352230,300.0,0.00021651,2]
[312963676,1706548361878,224.16,0.00031202,120]
[312963677,1706548372365,848.51334281,0.00021651,2]
[312963678,1706548373337,284.88299005,0.00021651,2]
[312963679,1706548378658,260.71319616,0.00021651,2]
[312963680,1706548380865,858.66470521,0.00021651,2]
[312963681,1706548385600,267.30688343,0.00021651,2]
[312963682,1706548386068,611.37098065,0.00021651,2]
[312963683,1706548389343,284.88299005,0.00021651,2]
[312963684,1706548390374,573.99574493,0.00021651,2]
[312963685,1706548390400,274.51759788,0.00021651,2]
[312963686,1706548392740,270.05230526,0.00021651,2]
[312963687,1706548397904,611.37098065,0.00021651,2]
[312963688,1706548398866,858.66470521,0.00021651,2]
[312963689,1706548405337,168.26209759,0.00021651,2]
[312963690,1706548405547,313.40889317,0.00021651,2]
[312963691,1706548406367,288.12739167,0.00021651,2]
[312963693,1706548413914,611.37098065,0.00021651,2]
[312963694,1706548414853,858.66470521,0.00021651,2]
[312963697,1706548431905,35.891176,0.00021651,2]
[312963698,1706548431929,320.8575021,0.00021651,2]
[312963699,1706548432893,448.96695143,0.00021651,2]
[312963700,1706548502853,175.74,0.00016712,2]
[312963709,1706548841478,163.27,0.00028824,91]
[312963713,1706549083130,171.17,0.00021576,2]
[312963715,1706549106259,175.74,0.00016712,2]
[312963748,1706549432044,-204.54760867,0.00021865,2]
[312963749,1706549432056,-664.44637704,0.00021865,2]
[312963750,1706549432065,-162.01160859,0.00021865,2]
[312963751,1706549432075,-3050.18561702,0.00021865,2]
[312963752,1706549432084,-677.3483605,0.00021866,2]
[312963754,1706549432093,-742.37982594,0.00021866,2]
[312963759,1706549432136,-538.22465249,0.00021866,2]
[312963761,1706549432153,-1852.79387019,0.00021866,2]
[312963763,1706549432162,-623.3393929,0.00021867,2]
[312963765,1706549432171,-732.18690129,0.00021867,2]
[312963766,1706549432180,-155.0,0.00021867,2]
[312963767,1706549432188,-717.650743,0.00021868,2]
[312963768,1706549432197,-165.30478149,0.00021879,2]
[312963769,1706549432206,-561.86622075,0.00021976,2]
[312963770,1706549432215,-385.48677123,0.00021976,2]
[312963771,1706549432224,-271.6453763,0.00021977,2]
[312963772,1706549432235,-250.4988379,0.00021977,2]
[312963773,1706549432244,-419.05803649,0.00021978,2]
[312963774,1706549432253,-150.0,0.00021979,2]
[312963775,1706549432262,-176.94784805,0.00022092,2]
[312963776,1706549432273,-1181.81,0.00022194,2]
[312963777,1706549432282,-591.8767425,0.00022518,2]
[312963778,1706549432291,-179.5828,0.00022628,2]
[312963779,1706549432300,-1464.61,0.00023093,2]
[312963781,1706549432309,-431.94,0.00023391,2]
[312963783,1706549432318,-150.0,0.00023835,2]
[312963785,1706549432327,-3029.0,0.000239,2]
[312963787,1706549432337,-6742.0,0.00024,2]
[312963789,1706549432346,-210.0,0.00024177,2]
[312963791,1706549432355,-181.12,0.0002424,2]